fUST/lending_fUST_20240912
["ID","MTS","AMOUNT","RATE_DAILY","PERIOD"]
[337845892,1726150252491,-500.0,0.00016986,2]
[337845893,1726150252500,-592.84678512,0.00016986,2]
[337845894,1726150252510,-200.0,0.00016986,2]
[337845895,1726150252520,-650.28,0.00016986,2]
[337845896,1726150252530,-500.0,0.00016986,2]
[337845897,1726150252540,-500.0,0.00016986,2]
[337845898,1726150252550,-223.61941,0.00016986,2]
[337845899,1726150252559,-500.0,0.00016986,2]
[337845900,1726150252569,-500.0,0.00016986,2]
[337845901,1726150252579,-702.21,0.00016986,2]
[337845902,1726150252589,-500.0,0.00016986,2]
[337845903,1726150252599,-500.0,0.00016986,2]
[337845904,1726150252609,-500.0,0.00016986,2]
[337845905,1726150252620,-500.0,0.00016986,2]
[337845906,1726150252630,-500.0,0.00016986,2]
[337845907,1726150252639,-533.094339,0.00016986,2]
[337845908,1726150252649,-552.29,0.00016986,2]
[337845909,1726150252659,-533.094339,0.00016986,2]
[337845910,1726150252670,-500.0,0.00016986,2]
[337845911,1726150252680,-500.0,0.00016986,2]
[337845912,1726150252690,-533.094339,0.00016986,2]
[337845913,1726150252700,-533.094339,0.00016986,2]
[337845914,1726150252710,-635.23,0.00016986,2]
[337845915,1726150252719,-151.0,0.00016986,2]
[337845916,1726150252729,-151.0,0.00016986,2]
[337845917,1726150252739,-619.24,0.00016986,2]
[337845918,1726150252752,-500.0,0.00016986,2]
[337845919,1726150252762,-504.10185442,0.00016986,2]
[337845920,1726150252771,-479.058814,0.00016986,2]
[337845921,1726150252782,-500.0,0.00016986,2]
[337845922,1726150252793,-500.0,0.00016986,2]
[337845923,1726150252802,-479.058814,0.00016986,2]
[337845924,1726150252812,-500.0,0.00016986,2]
[337845925,1726150252823,-500.0,0.00016986,2]
[337845926,1726150252832,-500.0,0.00016986,2]
[337845927,1726150252855,-600.36,0.00016986,2]
[337845928,1726150252868,-500.0,0.00016986,2]
[337845929,1726150252878,-500.0,0.00016986,2]
[337845930,1726150252887,-500.0,0.00016986,2]
[337845931,1726150252897,-500.0,0.00016986,2]
[337845932,1726150252906,-450.614078,0.00016986,2]
[337845933,1726150252917,-500.0,0.00016986,2]
[337845934,1726150252927,-1541.87832,0.00016986,2]
[337845935,1726150252937,-1541.87832,0.00016986,2]
[337845936,1726150252947,-1541.87832,0.00016986,2]
[337845937,1726150252957,-1541.87832,0.00016986,2]
[337845938,1726150252967,-729.62,0.00016986,2]
[337845939,1726150252976,-450.614078,0.00016986,2]
[337845940,1726150252986,-769.97,0.00016986,2]
[337845941,1726150252996,-500.0,0.00016986,2]
[337845942,1726150253006,-500.0,0.00016986,2]
[337845943,1726150253016,-500.0,0.00016986,2]
[337845944,1726150253027,-500.0,0.00016986,2]
[337845945,1726150253036,-893.51,0.00016986,2]
[337845946,1726150253046,-151.0,0.00016986,2]
[337845947,1726150253057,-151.0,0.00016986,2]
[337845948,1726150253067,-500.0,0.00016986,2]
[337845949,1726150253078,-151.0,0.00016986,2]
[337845950,1726150253088,-500.0,0.00016986,2]
[337845951,1726150253098,-815.0,0.00016986,2]
[337845952,1726150253109,-1101.4,0.00016986,2]
[337845953,1726150253120,-391.47,0.00016986,2]
[337845954,1726150253130,-500.0,0.00016986,2]
[337845955,1726150253140,-500.0,0.00016986,2]
[337845956,1726150253151,-500.0,0.00016986,2]
[337845957,1726150253161,-151.0,0.00016986,2]
[337845958,1726150253171,-500.0,0.00016986,2]
[337845959,1726150253180,-10000.0,0.00016986,2]
[337845960,1726150253190,-500.0,0.00016986,2]
[337845961,1726150253200,-10000.0,0.00016986,2]
[337845962,1726150253210,-500.0,0.00016986,2]
[337845963,1726150253220,-947.829336,0.00016986,2]
[337845964,1726150253233,-947.829336,0.00016986,2]
[337845965,1726150253243,-697.062268,0.00016986,2]
[337845966,1726150253254,-10000.0,0.00016986,2]
[337845967,1726150253264,-812.86,0.00016986,2]
[337845968,1726150253274,-947.829336,0.00016986,2]
[337845969,1726150253285,-697.062268,0.00016986,2]
[337845970,1726150253296,-947.829336,0.00016986,2]
[337845971,1726150253306,-500.0,0.00016986,2]
[337845972,1726150253319,-500.0,0.00016986,2]
[337845973,1726150253330,-569.31,0.00016986,2]
[337845974,1726150253345,-958.15,0.00016986,2]
[337845975,1726150253356,-854.5,0.00016986,2]
[337845976,1726150253367,-706.99,0.00016986,2]
[337845977,1726150253377,-500.0,0.00016986,2]
[337845978,1726150253388,-648.72,0.00016986,2]
[337845979,1726150253398,-502.13,0.00016986,2]
[337845980,1726150253407,-500.0,0.00016986,2]
[337845981,1726150253418,-500.0,0.00016986,2]
[337845982,1726150253427,-540.28,0.00016986,2]
[337845983,1726150253437,-500.0,0.00016986,2]
[337845984,1726150253447,-500.0,0.00016986,2]
[337845985,1726150253456,-1235.46,0.00016986,2]
[337845986,1726150253466,-500.0,0.00016986,2]
[337845987,1726150253475,-500.0,0.00016986,2]
[337845988,1726150253485,-1076.19,0.00016986,2]
[337845989,1726150253494,-758.27,0.00016986,2]
[337845990,1726150253504,-338.26,0.00016986,2]
[337845991,1726150253513,-500.0,0.00016986,2]
[337845992,1726150253522,-825.45,0.00016986,2]
[337845993,1726150253532,-500.0,0.00016986,2]
[337845994,1726150253542,-1058.68,0.00016986,2]
[337845995,1726150253553,-785.22,0.00016986,2]
[337845996,1726150253563,-500.0,0.00016986,2]
[337845997,1726150253572,-151.0,0.00016986,2]
[337845998,1726150253581,-151.0,0.00016986,2]
[337845999,1726150253591,-324.23841,0.00016986,2]
[337846000,1726150253601,-324.23841,0.00016986,2]
[337846001,1726150253610,-980.2,0.00016986,2]
[337846002,1726150253620,-324.23841,0.00016986,2]
[337846003,1726150253630,-324.23841,0.00016986,2]
[337846004,1726150253640,-11877.91,0.00016986,2]
[337846005,1726150253649,-500.0,0.00016986,2]
[337846006,1726150253658,-770.112639,0.00016986,2]
[337846007,1726150253668,-770.112639,0.00016986,2]
[337846008,1726150253677,-500.0,0.00016986,2]
[337846009,1726150253687,-770.112639,0.00016986,2]
[337846010,1726150253697,-770.112639,0.00016986,2]
[337846011,1726150253706,-881.34,0.00016986,2]
[337846012,1726150253716,-500.0,0.00016986,2]
[337846013,1726150253725,-648.82209,0.00016986,2]
[337846014,1726150253735,-500.0,0.00016986,2]
[337846015,1726150253747,-648.82209,0.00016986,2]
[337846016,1726150253759,-500.0,0.00016986,2]
[337846017,1726150253768,-510.04,0.00016986,2]
[337846018,1726150253778,-8606.77,0.00016986,2]
[337846019,1726150253787,-500.0,0.00016986,2]
[337846020,1726150253797,-654.97,0.00016986,2]
[337846021,1726150253807,-784.9,0.00016986,2]
[337846022,1726150253817,-500.0,0.00016986,2]
[337846023,1726150253828,-740.4,0.00016986,2]
[337846024,1726150253839,-847.21,0.00016986,2]
[337846025,1726150253849,-646.18,0.00016986,2]
[337846026,1726150253858,-500.0,0.00016986,2]
[337846027,1726150253868,-500.0,0.00016986,2]
[337846028,1726150253877,-151.0,0.00016986,2]
[337846029,1726150253886,-500.0,0.00016986,2]
[337846030,1726150253896,-151.0,0.00016986,2]
[337846031,1726150253906,-500.0,0.00016986,2]
[337846032,1726150253916,-500.0,0.00016986,2]
[337846033,1726150253926,-500.0,0.00016986,2]
[337846034,1726150253935,-2155.75,0.00016986,2]
[337846035,1726150253945,-498.14246116,0.00016986,2]
[337846036,1726150253954,-500.0,0.00016986,2]
[337846037,1726150253963,-837.66,0.00016986,2]
[337846038,1726150253973,-737.21,0.00016986,2]
[337846039,1726150253983,-500.0,0.00016986,2]
[337846040,1726150253992,-157.678452,0.00016986,2]
[337846041,1726150254002,-700.928166,0.00016986,2]
[337846042,1726150254012,-700.928166,0.00016986,2]
[337846043,1726150254021,-831.55,0.00016986,2]
[337846044,1726150254030,-842.69,0.00016986,2]
[337846045,1726150254040,-820.31,0.00016986,2]
[337846046,1726150254049,-151.0,0.00016986,2]
[337846047,1726150254058,-500.0,0.00016986,2]
[337846048,1726150254068,-835.44,0.00016986,2]
[337846049,1726150254078,-151.0,0.00016986,2]
[337846050,1726150254089,-851.8,0.00016986,2]
[337846051,1726150254101,-500.0,0.00016986,2]
[337846052,1726150254111,-4349.15,0.00016986,2]
[337846053,1726150254121,-500.0,0.00016986,2]
[337846054,1726150254131,-7670.64,0.00016986,2]
[337846055,1726150254140,-500.0,0.00016986,2]
[337846056,1726150254149,-692.972043,0.00016986,2]
[337846057,1726150254159,-500.0,0.00016986,2]
[337846058,1726150254169,-500.0,0.00016986,2]
[337846059,1726150254179,-500.0,0.00016986,2]
[337846060,1726150254189,-692.972043,0.00016986,2]
[337846061,1726150254198,-12908.87,0.00016986,2]
[337846062,1726150254208,-894.03,0.00016986,2]
[337846063,1726150254218,-500.0,0.00016986,2]
[337846064,1726150254229,-503.70628264,0.00016986,2]
[337846065,1726150254239,-954.84,0.00016986,2]
[337846066,1726150254249,-733.16,0.00016986,2]
[337846067,1726150254261,-1391.31,0.00016986,2]
[337846068,1726150254272,-151.0,0.00016986,2]
[337846069,1726150254282,-561.99,0.00016986,2]
[337846070,1726150254292,-286.05,0.00016986,2]
[337846071,1726150254302,-500.0,0.00016986,2]
[337846072,1726150254312,-5780.67,0.00016986,2]
[337846073,1726150254321,-942.13,0.00016986,2]
[337846074,1726150254330,-151.0,0.00016986,2]
[337846075,1726150254341,-540.316874,0.00016986,2]
[337846076,1726150254350,-1854.03,0.00016986,2]
[337846077,1726150254360,-151.0,0.00016986,2]
[337846078,1726150254369,-500.0,0.00016986,2]
[337846079,1726150254378,-532.65,0.00016986,2]
[337846080,1726150254388,-413.28295151,0.00016986,2]
[337846081,1726150254397,-13395.66,0.00016986,2]
[337846082,1726150254407,-540.316874,0.00016986,2]
[337846083,1726150254417,-500.0,0.00016986,2]
[337846084,1726150254426,-882.5,0.00016986,2]
[337846085,1726150254619,-500.0,0.00016986,2]
[337846086,1726150254630,-987.02,0.00016986,2]
[337846087,1726150254640,-180.95542499,0.00016986,2]
[337846088,1726150254649,-643.01,0.00016986,2]
[337846089,1726150254658,-500.0,0.00017,2]
[337846090,1726150254668,-1000.0,0.00017,2]
[337846091,1726150254678,-500.0,0.00017,7]
[337846092,1726150254688,-500.0,0.00017,7]
[337846093,1726150254697,-500.0,0.00017,7]
[337846094,1726150254706,-426.75,0.00017,7]
[337846095,1726150254716,-500.0,0.00017,7]
[337846096,1726150254726,-500.0,0.00017,7]
[337846097,1726150254735,-500.0,0.00017,7]
[337846098,1726150254747,-500.0,0.00017,7]
[337846099,1726150254756,-500.0,0.00017,7]
[337846100,1726150254765,-500.0,0.00017,7]
[337846101,1726150254775,-500.0,0.00017,7]
[337846102,1726150254784,-500.0,0.00017,7]
[337846103,1726150254794,-500.0,0.00017,7]
[337846104,1726150254803,-474.96,0.00017,7]
[337846105,1726150254812,-208.4409107,0.00017041,2]
[337846106,1726150254823,-153.0,0.00017123,2]
[337846107,1726150254833,-153.0,0.00017123,2]
[337846108,1726150254848,-153.0,0.00017123,2]
[337846109,1726150254857,-153.0,0.00017123,2]
[337846110,1726150254866,-153.0,0.00017123,2]
[337846111,1726150254875,-203.5036983,0.00017123,2]
[337846112,1726150254885,-153.0,0.00017123,2]
[337846113,1726150254894,-153.0,0.00017123,2]
[337846114,1726150254904,-153.0,0.00017123,2]
[337846115,1726150254913,-153.0,0.00017123,2]
[337846116,1726150254922,-153.0,0.00017123,2]
[337846117,1726150254931,-153.0,0.00017123,2]
[337846118,1726150254940,-153.0,0.00017123,2]
[337846119,1726150254950,-153.0,0.00017123,2]
[337846120,1726150254959,-153.0,0.00017123,2]
[337846121,1726150254968,-319.9636734,0.00017123,2]
[337846122,1726150254978,-337.7365135,0.00017123,2]
[337846123,1726150254987,-151.0,0.0001726,2]
[337846124,1726150254996,-151.0,0.0001726,2]
[337846125,1726150255005,-151.0,0.0001726,2]
[337846126,1726150255015,-500.0,0.0001726,2]
[337846127,1726150255024,-500.0,0.0001726,2]
[337846128,1726150255033,-500.0,0.0001726,2]
[337846129,1726150255043,-164.41186863,0.0001726,2]
[337846130,1726150255052,-500.0,0.0001726,2]
[337846131,1726150255062,-500.0,0.0001726,2]
[337846132,1726150255071,-500.0,0.0001726,2]
[337846133,1726150255081,-500.0,0.0001726,2]
[337846134,1726150255091,-500.0,0.0001726,2]
[337846135,1726150255101,-742.36,0.0001726,2]
[337846136,1726150255110,-155.295699,0.0001726,2]
[337846137,1726150255120,-500.0,0.0001726,2]
[337846138,1726150255129,-774.95,0.0001726,2]
[337846139,1726150255139,-500.0,0.0001726,2]
[337846140,1726150255149,-500.0,0.0001726,2]
[337846141,1726150255159,-500.0,0.0001726,2]
[337846142,1726150255168,-500.0,0.0001726,2]
[337846143,1726150255178,-500.0,0.0001726,2]
[337846144,1726150255188,-500.0,0.0001726,2]
[337846145,1726150255197,-500.0,0.0001726,2]
[337846146,1726150255207,-500.0,0.0001726,2]
[337846147,1726150255216,-500.0,0.0001726,2]
[337846148,1726150255226,-500.0,0.0001726,2]
[337846149,1726150255235,-500.0,0.0001726,2]
[337846150,1726150255245,-500.0,0.0001726,2]
[337846151,1726150255255,-500.0,0.0001726,2]
[337846152,1726150255265,-500.0,0.0001726,2]
[337846153,1726150255275,-500.0,0.0001726,2]
[337846154,1726150255285,-353.71,0.0001726,2]
[337846155,1726150255294,-500.0,0.0001726,2]
[337846156,1726150255304,-289.91,0.0001726,2]
[337846157,1726150255313,-654.69,0.0001726,2]
[337846158,1726150255323,-3815.174827,0.0001726,2]
[337846159,1726150255332,-549.70775435,0.0001726,2]
[337846160,1726150255343,-3815.174827,0.0001726,2]
[337846161,1726150255352,-500.0,0.0001726,2]
[337846162,1726150255362,-500.0,0.0001726,2]
[337846163,1726150255372,-780.7,0.0001726,2]
[337846164,1726150255381,-500.0,0.0001726,2]
[337846165,1726150255391,-627.929473,0.0001726,2]
[337846166,1726150255401,-627.929473,0.0001726,2]
[337846167,1726150255411,-500.0,0.0001726,2]
[337846168,1726150255421,-500.0,0.0001726,2]
[337846169,1726150255430,-151.0,0.0001726,2]
[337846170,1726150255439,-151.0,0.0001726,2]
[337846171,1726150255449,-500.0,0.0001726,2]
[337846172,1726150255459,-180.932478,0.0001726,2]
[337846173,1726150255468,-180.932478,0.0001726,2]
[337846174,1726150255477,-180.932478,0.0001726,2]
[337846175,1726150255487,-180.932478,0.0001726,2]
[337846176,1726150255496,-500.0,0.0001726,2]
[337846177,1726150255515,-823.0,0.0001726,2]
[337846178,1726150255525,-500.0,0.0001726,2]
[337846179,1726150255535,-521.87,0.0001726,2]
[337846180,1726150255545,-500.0,0.0001726,2]
[337846181,1726150255555,-151.0,0.0001726,2]
[337846182,1726150255565,-500.0,0.0001726,2]
[337846183,1726150255573,-500.0,0.0001726,2]
[337846184,1726150255583,-159.071171,0.0001726,2]
[337846185,1726150255594,-500.0,0.0001726,2]
[337846186,1726150255603,-159.071171,0.0001726,2]
[337846187,1726150255613,-546.68,0.0001726,2]
[337846188,1726150255622,-500.0,0.0001726,2]
[337846189,1726150255632,-826.0,0.0001726,2]
[337846190,1726150255642,-654.43,0.0001726,2]
[337846191,1726150255651,-500.0,0.0001726,2]
[337846192,1726150255661,-500.0,0.0001726,2]
[337846193,1726150255671,-500.0,0.0001726,2]
[337846194,1726150255680,-500.0,0.0001726,2]
[337846195,1726150255690,-195.032814,0.0001726,2]
[337846196,1726150255699,-156.33,0.0001726,2]
[337846197,1726150255709,-195.032814,0.0001726,2]
[337846198,1726150255718,-511.44,0.0001726,2]
[337846199,1726150255727,-500.0,0.0001726,2]
[337846200,1726150255736,-159.419124,0.0001726,2]
[337846201,1726150255747,-500.0,0.0001726,2]
[337846202,1726150255759,-562.278671,0.0001726,2]
[337846203,1726150255768,-562.278671,0.0001726,2]
[337846204,1726150255778,-159.419124,0.0001726,2]
[337846205,1726150255788,-575.62,0.0001726,2]
[337846206,1726150255798,-500.0,0.0001726,2]
[337846207,1726150255807,-1054.19,0.0001726,2]
[337846208,1726150255817,-500.0,0.0001726,2]
[337846209,1726150255828,-500.0,0.0001726,2]
[337846210,1726150255840,-500.0,0.0001726,2]
[337846211,1726150255850,-500.0,0.0001726,2]
[337846212,1726150255860,-500.0,0.0001726,2]
[337846213,1726150255869,-557.58,0.0001726,2]
[337846214,1726150255879,-500.0,0.0001726,2]
[337846215,1726150255888,-539.93,0.0001726,2]
[337846216,1726150255897,-974.73,0.0001726,2]
[337846217,1726150255906,-500.0,0.0001726,2]
[337846218,1726150255916,-500.0,0.0001726,2]
[337846219,1726150255926,-734.06781,0.0001726,2]
[337846220,1726150255935,-500.0,0.0001726,2]
[337846221,1726150255944,-520.75,0.0001726,2]
[337846222,1726150255954,-500.0,0.0001726,2]
[337846223,1726150255963,-151.0,0.0001726,2]
[337846224,1726150255972,-365.24,0.0001726,2]
[337846225,1726150255982,-200.0,0.0001726,2]
[337846226,1726150255992,-650.28,0.0001726,2]
[337846227,1726150256001,-168.27315746,0.0001726,2]
[337846228,1726150256011,-500.0,0.0001726,2]
[337846229,1726150256021,-500.0,0.0001726,2]
[337846230,1726150256031,-500.0,0.0001726,2]
[337846231,1726150256040,-702.21,0.0001726,2]
[337846232,1726150256050,-500.0,0.0001726,2]
[337846233,1726150256060,-500.0,0.0001726,2]
[337846234,1726150256069,-500.0,0.0001726,2]
[337846235,1726150256079,-500.0,0.0001726,2]
[337846236,1726150256090,-552.29,0.0001726,2]
[337846237,1726150256100,-533.094339,0.0001726,2]
[337846238,1726150256110,-500.0,0.0001726,2]
[337846239,1726150256120,-500.0,0.0001726,2]
[337846240,1726150256133,-533.094339,0.0001726,2]
[337846241,1726150256143,-151.0,0.0001726,2]
[337846242,1726150256153,-151.0,0.0001726,2]
[337846243,1726150256163,-151.0,0.0001726,2]
[337846244,1726150256172,-619.24,0.0001726,2]
[337846245,1726150256182,-151.0,0.0001726,2]
[337846246,1726150256192,-500.0,0.0001726,2]
[337846247,1726150256201,-479.058814,0.0001726,2]
[337846248,1726150256211,-479.058814,0.0001726,2]
[337846249,1726150256221,-543.13903834,0.0001726,2]
[337846250,1726150256230,-500.0,0.0001726,2]
[337846251,1726150256240,-500.0,0.0001726,2]
[337846252,1726150256250,-479.058814,0.0001726,2]
[337846253,1726150256261,-479.058814,0.0001726,2]
[337846254,1726150256270,-500.0,0.0001726,2]
[337846255,1726150256280,-500.0,0.0001726,2]
[337846256,1726150256291,-600.36,0.0001726,2]
[337846257,1726150256300,-500.0,0.0001726,2]
[337846258,1726150256310,-500.0,0.0001726,2]
[337846259,1726150256319,-500.0,0.0001726,2]
[337846260,1726150256330,-450.614078,0.0001726,2]
[337846261,1726150256342,-450.614078,0.0001726,2]
[337846262,1726150256351,-1541.87832,0.0001726,2]
[337846263,1726150256361,-1541.87832,0.0001726,2]
[337846264,1726150256371,-729.62,0.0001726,2]
[337846265,1726150256381,-450.614078,0.0001726,2]
[337846266,1726150256391,-450.614078,0.0001726,2]
[337846267,1726150256401,-769.97,0.0001726,2]
[337846268,1726150256412,-500.0,0.0001726,2]
[337846269,1726150256422,-500.0,0.0001726,2]
[337846270,1726150256432,-500.0,0.0001726,2]
[337846271,1726150256442,-500.0,0.0001726,2]
[337846272,1726150256452,-893.51,0.0001726,2]
[337846273,1726150256463,-151.0,0.0001726,2]
[337846274,1726150256473,-500.0,0.0001726,2]
[337846275,1726150256483,-151.0,0.0001726,2]
[337846276,1726150256494,-151.0,0.0001726,2]
[337846277,1726150256503,-500.0,0.0001726,2]
[337846278,1726150256513,-815.0,0.0001726,2]
[337846279,1726150256523,-1101.4,0.0001726,2]
[337846280,1726150256533,-500.0,0.0001726,2]
[337846281,1726150256542,-500.0,0.0001726,2]
[337846282,1726150256552,-151.0,0.0001726,2]
[337846283,1726150256561,-151.0,0.0001726,2]
[337846284,1726150256571,-500.0,0.0001726,2]
[337846285,1726150256583,-10000.0,0.0001726,2]
[337846286,1726150256595,-10000.0,0.0001726,2]
[337846287,1726150256604,-500.0,0.0001726,2]
[337846288,1726150256614,-10000.0,0.0001726,2]
[337846289,1726150256623,-10000.0,0.0001726,2]
[337846290,1726150256634,-500.0,0.0001726,2]
[337846291,1726150256643,-947.829336,0.0001726,2]
[337846292,1726150256653,-697.062268,0.0001726,2]
[337846293,1726150256663,-697.062268,0.0001726,2]
[337846294,1726150256673,-10000.0,0.0001726,2]
[337846295,1726150256682,-10000.0,0.0001726,2]
[337846296,1726150256691,-812.86,0.0001726,2]
[337846297,1726150256701,-697.062268,0.0001726,2]
[337846298,1726150256711,-697.062268,0.0001726,2]
[337846299,1726150256721,-947.829336,0.0001726,2]
[337846300,1726150256730,-500.0,0.0001726,2]
[337846301,1726150256739,-569.31,0.0001726,2]
[337846302,1726150256751,-958.15,0.0001726,2]
[337846303,1726150256761,-854.5,0.0001726,2]
[337846304,1726150256771,-706.99,0.0001726,2]
[337846305,1726150256780,-500.0,0.0001726,2]
[337846306,1726150256791,-648.72,0.0001726,2]
[337846307,1726150256800,-502.13,0.0001726,2]
[337846308,1726150256809,-500.0,0.0001726,2]
[337846309,1726150256819,-500.0,0.0001726,2]
[337846310,1726150256829,-540.28,0.0001726,2]
[337846311,1726150256838,-500.0,0.0001726,2]
[337846312,1726150256848,-500.0,0.0001726,2]
[337846313,1726150256857,-1235.46,0.0001726,2]
[337846314,1726150256867,-500.0,0.0001726,2]
[337846315,1726150256876,-500.0,0.0001726,2]
[337846316,1726150256885,-1076.19,0.0001726,2]
[337846317,1726150256895,-758.27,0.0001726,2]
[337846318,1726150256904,-500.0,0.0001726,2]
[337846319,1726150256914,-825.45,0.0001726,2]
[337846320,1726150256923,-500.0,0.0001726,2]
[337846321,1726150256933,-1058.68,0.0001726,2]
[337846322,1726150256942,-785.22,0.0001726,2]
[337846323,1726150256952,-500.0,0.0001726,2]
[337846324,1726150256962,-151.0,0.0001726,2]
[337846325,1726150256972,-324.23841,0.0001726,2]
[337846326,1726150256981,-980.2,0.0001726,2]
[337846327,1726150256991,-324.23841,0.0001726,2]
[337846328,1726150257001,-11877.91,0.0001726,2]
[337846329,1726150257011,-500.0,0.0001726,2]
[337846330,1726150257021,-770.112639,0.0001726,2]
[337846331,1726150257031,-500.0,0.0001726,2]
[337846332,1726150257040,-770.112639,0.0001726,2]
[337846333,1726150257050,-881.34,0.0001726,2]
[337846334,1726150257060,-500.0,0.0001726,2]
[337846335,1726150257070,-648.82209,0.0001726,2]
[337846336,1726150257080,-557.91755558,0.0001726,2]
[337846337,1726150257091,-648.82209,0.0001726,2]
[337846338,1726150257100,-500.0,0.0001726,2]
[337846339,1726150257110,-648.82209,0.0001726,2]
[337846340,1726150257119,-648.82209,0.0001726,2]
[337846341,1726150257129,-510.04,0.0001726,2]
[337846342,1726150257138,-8606.77,0.0001726,2]
[337846343,1726150257148,-500.0,0.0001726,2]
[337846344,1726150257157,-654.97,0.0001726,2]
[337846345,1726150257167,-784.9,0.0001726,2]
[337846346,1726150257177,-500.0,0.0001726,2]
[337846347,1726150257186,-740.4,0.0001726,2]
[337846348,1726150257196,-847.21,0.0001726,2]
[337846349,1726150257206,-646.18,0.0001726,2]
[337846350,1726150257215,-500.0,0.0001726,2]
[337846351,1726150257225,-500.0,0.0001726,2]
[337846352,1726150257235,-500.0,0.0001726,2]
[337846353,1726150257244,-254.679653,0.0001726,2]
[337846354,1726150257254,-500.0,0.0001726,2]
[337846355,1726150257264,-500.0,0.0001726,2]
[337846356,1726150257274,-500.0,0.0001726,2]
[337846357,1726150257283,-2155.75,0.0001726,2]
[337846358,1726150257293,-621.0,0.0001726,2]
[337846359,1726150257302,-737.21,0.0001726,2]
[337846360,1726150257312,-500.0,0.0001726,2]
[337846361,1726150257322,-700.928166,0.0001726,2]
[337846362,1726150257331,-700.928166,0.0001726,2]
[337846363,1726150257343,-700.928166,0.0001726,2]
[337846364,1726150257352,-700.928166,0.0001726,2]
[337846365,1726150257362,-831.55,0.0001726,2]
[337846366,1726150257371,-842.69,0.0001726,2]
[337846367,1726150257381,-820.31,0.0001726,2]
[337846368,1726150257391,-151.0,0.0001726,2]
[337846369,1726150257400,-500.0,0.0001726,2]
[337846370,1726150257410,-151.0,0.0001726,2]
[337846371,1726150257420,-835.44,0.0001726,2]
[337846372,1726150257429,-151.0,0.0001726,2]
[337846373,1726150257438,-151.0,0.0001726,2]
[337846374,1726150257447,-851.8,0.0001726,2]
[337846375,1726150257457,-500.0,0.0001726,2]
[337846376,1726150257472,-4349.15,0.0001726,2]
[337846377,1726150257485,-500.0,0.0001726,2]
[337846378,1726150257495,-7670.64,0.0001726,2]
[337846379,1726150257505,-500.0,0.0001726,2]
[337846380,1726150257515,-692.972043,0.0001726,2]
[337846381,1726150257525,-692.972043,0.0001726,2]
[337846382,1726150257534,-500.0,0.0001726,2]
[337846383,1726150257544,-500.0,0.0001726,2]
[337846384,1726150257554,-500.0,0.0001726,2]
[337846385,1726150257564,-692.972043,0.0001726,2]
[337846386,1726150257574,-692.972043,0.0001726,2]
[337846387,1726150257583,-12908.87,0.0001726,2]
[337846388,1726150257593,-894.03,0.0001726,2]
[337846389,1726150257602,-500.0,0.0001726,2]
[337846390,1726150257612,-954.84,0.0001726,2]
[337846391,1726150257622,-733.16,0.0001726,2]